[Event "*** SCC Grand Prix: Titled Tuesday Blitz"]
[Site "Chess.com"]
[Date "2020.07.07"]
[Round "4"]
[White "vpsetter"]
[Black "Lucas_Tomiello"]
[Result "1-0"]
[WhiteElo "2619"]
[BlackElo "2424"]
[TimeControl "180+1"]
[EndTime "10:42:06 PDT"]
[Termination "vpsetter won by resignation"]

1. e4 {[%clk 0:03:00.5]} 1... c5 {[%clk 0:03:00.1]} 2. Nf3 {[%clk 0:03:00.3]}
2... d6 {[%clk 0:03:00.6]} 3. d4 {[%clk 0:03:01]} 3... cxd4 {[%clk 0:03:01.2]}
4. Nxd4 {[%clk 0:03:01.9]} 4... Nf6 {[%clk 0:03:01.8]} 5. Nc3 {[%clk 0:03:02.5]}
5... a6 {[%clk 0:03:02.3]} 6. Be2 {[%clk 0:02:59.1]} 6... e5 {[%clk 0:03:02.2]}
7. Nb3 {[%clk 0:02:58.9]} 7... Be6 {[%clk 0:03:02.5]} 8. O-O {[%clk 0:02:56.6]}
8... Be7 {[%clk 0:03:02.1]} 9. f4 {[%clk 0:02:53.3]} 9... exf4 {[%clk
0:02:56.9]} 10. Nd4 {[%clk 0:02:46.3]} 10... Nc6 {[%clk 0:02:52.6]} 11. Nxe6
{[%clk 0:02:45.2]} 11... fxe6 {[%clk 0:02:53.5]} 12. Rxf4 {[%clk 0:02:44.3]}
12... Ne5 {[%clk 0:02:46.8]} 13. Be3 {[%clk 0:02:40.8]} 13... O-O {[%clk
0:02:45]} 14. Qd2 {[%clk 0:02:34.9]} 14... Rc8 {[%clk 0:02:43.6]} 15. Raf1
{[%clk 0:02:33.6]} 15... b5 {[%clk 0:02:41.5]} 16. a3 {[%clk 0:02:28]} 16... Qc7
{[%clk 0:02:33.3]} 17. Bd3 {[%clk 0:02:15.9]} 17... Qb7 {[%clk 0:02:24]} 18. Qe1
{[%clk 0:01:45.8]} 18... b4 {[%clk 0:01:45.4]} 19. axb4 {[%clk 0:01:35.8]} 19...
Qxb4 {[%clk 0:01:44.7]} 20. Bxa6 {[%clk 0:01:27.9]} 20... Ra8 {[%clk 0:01:34.6]}
21. Bd3 {[%clk 0:01:06.1]} 21... Qxb2 {[%clk 0:01:27.4]} 22. Ne2 {[%clk
0:00:56.7]} 22... Ra4 {[%clk 0:01:13.4]} 23. Bc1 {[%clk 0:00:20.3]} 23... Qb6+
{[%clk 0:01:06.3]} 24. Kh1 {[%clk 0:00:20.3]} 24... Ra1 {[%clk 0:00:57.9]} 25.
Qc3 {[%clk 0:00:16]} 25... Rfa8 {[%clk 0:00:43.9]} 26. Qd4 {[%clk 0:00:04.1]}
26... Qxd4 {[%clk 0:00:35.5]} 27. Nxd4 {[%clk 0:00:04.5]} 27... Nxd3 {[%clk
0:00:31.9]} 28. cxd3 {[%clk 0:00:05.1]} 28... e5 {[%clk 0:00:32.3]} 29. Nf5
{[%clk 0:00:05.4]} 29... exf4 {[%clk 0:00:31.7]} 30. Nxe7+ {[%clk 0:00:05.2]}
30... Kf7 {[%clk 0:00:32.2]} 31. Nf5 {[%clk 0:00:03.4]} 31... Ke6 {[%clk
0:00:20.5]} 32. Nxg7+ {[%clk 0:00:03.5]} 32... Kd7 {[%clk 0:00:20.6]} 33. Kg1
{[%clk 0:00:03.3]} 33... Rg8 {[%clk 0:00:13.6]} 34. Nf5 {[%clk 0:00:02.6]} 34...
Ng4 {[%clk 0:00:13.9]} 35. Bxf4 {[%clk 0:00:02.3]} 35... Rxf1+ {[%clk
0:00:13.3]} 36. Kxf1 {[%clk 0:00:03.2]} 36... Ne5 {[%clk 0:00:14]} 37. Bxe5
{[%clk 0:00:03.6]} 37... dxe5 {[%clk 0:00:14.9]} 38. g3 {[%clk 0:00:03.8]} 38...
Ra8 {[%clk 0:00:14.5]} 39. h4 {[%clk 0:00:03.9]} 39... Ra2 {[%clk 0:00:14.8]}
40. g4 {[%clk 0:00:04.1]} 40... Ke6 {[%clk 0:00:15.1]} 41. g5 {[%clk 0:00:04.4]}
41... Rh2 {[%clk 0:00:13]} 42. Kg1 {[%clk 0:00:04.8]} 42... Rd2 {[%clk
0:00:13.2]} 43. h5 {[%clk 0:00:05.2]} 43... Rxd3 {[%clk 0:00:13.2]} 44. g6
{[%clk 0:00:05.5]} 44... hxg6 {[%clk 0:00:13.6]} 45. hxg6 {[%clk 0:00:06]} 45...
Kf6 {[%clk 0:00:14.2]} 46. g7 {[%clk 0:00:06]} 46... Kf7 {[%clk 0:00:14.8]} 47.
Kf1 {[%clk 0:00:06.5]} 47... Rh3 {[%clk 0:00:12.9]} 48. Kf2 {[%clk 0:00:06.6]}
48... Ra3 {[%clk 0:00:13]} 49. Ke2 {[%clk 0:00:07]} 49... Ra4 {[%clk 0:00:11.5]}
50. Kf3 {[%clk 0:00:07.3]} 50... Ra3+ {[%clk 0:00:10.1]} 51. Kg4 {[%clk
0:00:07.6]} 51... Ra1 {[%clk 0:00:10.7]} 52. Kf3 {[%clk 0:00:06.4]} 52... Rg1
{[%clk 0:00:10.9]} 53. Ke3 {[%clk 0:00:06.4]} 53... Rg5 {[%clk 0:00:10]} 54. Kd3
{[%clk 0:00:06.6]} 54... Rxg7 {[%clk 0:00:07]} 55. Nxg7 {[%clk 0:00:06.7]} 55...
Kxg7 {[%clk 0:00:07.9]} 56. Kc4 {[%clk 0:00:07.2]} 56... Kf6 {[%clk 0:00:07.6]}
57. Kd5 {[%clk 0:00:07.2]} 57... Kf7 {[%clk 0:00:08.2]} 58. Kd6 {[%clk
0:00:05.8]} 58... Kf6 {[%clk 0:00:08.3]} 59. Kd5 {[%clk 0:00:06.1]} 59... Kf7
{[%clk 0:00:08.7]} 60. Kd6 {[%clk 0:00:02.9]} 60... Kf6 {[%clk 0:00:09]} 61. Kd7
{[%clk 0:00:03.4]} 61... Kg5 {[%clk 0:00:07]} 62. Ke6 {[%clk 0:00:03.8]} 62...
Kg6 {[%clk 0:00:03.5]} 63. Kxe5 {[%clk 0:00:03.9]} 63... Kf7 {[%clk 0:00:03.2]}
64. Kd6 {[%clk 0:00:04.5]} 64... Ke8 {[%clk 0:00:03.8]} 65. Ke6 {[%clk
0:00:04.6]} 65... Kf8 {[%clk 0:00:04.4]} 66. Kd7 {[%clk 0:00:04.4]} 66... Kf7
{[%clk 0:00:04.9]} 67. e5 {[%clk 0:00:05.1]} 67... Kg6 {[%clk 0:00:05.5]} 68. e6
{[%clk 0:00:05.9]} 68... Kf5 {[%clk 0:00:06.4]} 69. e7 {[%clk 0:00:06.6]} 69...
Kf4 {[%clk 0:00:06.8]} 1-0

[Event "*** SCC Grand Prix: Titled Tuesday Blitz"]
[Site "Chess.com"]
[Date "2020.07.07"]
[Round "4"]
[White "plumalka"]
[Black "gross-aleks"]
[Result "0-1"]
[WhiteElo "2403"]
[BlackElo "2610"]
[TimeControl "180+1"]
[EndTime "10:42:08 PDT"]
[Termination "gross-aleks won by resignation"]

1. e4 {[%clk 0:03:00.9]} 1... e5 {[%clk 0:02:57.3]} 2. Nf3 {[%clk 0:02:59.9]}
2... Nc6 {[%clk 0:02:56.4]} 3. Nc3 {[%clk 0:02:59.9]} 3... Bb4 {[%clk
0:02:54.7]} 4. Nd5 {[%clk 0:02:52.5]} 4... Bc5 {[%clk 0:02:52.4]} 5. c3 {[%clk
0:02:50.6]} 5... d6 {[%clk 0:02:44.9]} 6. d4 {[%clk 0:02:47.4]} 6... Bb6 {[%clk
0:02:45]} 7. Bb5 {[%clk 0:02:41]} 7... exd4 {[%clk 0:02:34.7]} 8. cxd4 {[%clk
0:02:36]} 8... Bd7 {[%clk 0:02:34.3]} 9. O-O {[%clk 0:02:35]} 9... Nge7 {[%clk
0:02:33.8]} 10. Bg5 {[%clk 0:02:27.6]} 10... f6 {[%clk 0:01:16.2]} 11. Bxf6
{[%clk 0:02:26.9]} 11... O-O {[%clk 0:01:07.7]} 12. Bxc6 {[%clk 0:02:22.7]}
12... gxf6 {[%clk 0:01:06.9]} 13. Nxe7+ {[%clk 0:02:03.4]} 13... Qxe7 {[%clk
0:01:06]} 14. Bxd7 {[%clk 0:02:03.7]} 14... Qxd7 {[%clk 0:01:05.5]} 15. Nh4
{[%clk 0:02:03.1]} 15... d5 {[%clk 0:01:04.7]} 16. Qb3 {[%clk 0:01:46.5]} 16...
Rad8 {[%clk 0:00:56]} 17. Nf5 {[%clk 0:01:39.5]} 17... Kh8 {[%clk 0:00:55.1]}
18. Rae1 {[%clk 0:01:35.3]} 18... dxe4 {[%clk 0:00:52.6]} 19. Qh3 {[%clk
0:01:35.4]} 19... Rde8 {[%clk 0:00:43.2]} 20. Re3 {[%clk 0:01:24.3]} 20... Bxd4
{[%clk 0:00:39.2]} 21. Rd1 {[%clk 0:00:51.3]} 21... c5 {[%clk 0:00:38.2]} 22.
Nxd4 {[%clk 0:00:51.2]} 22... Qxh3 {[%clk 0:00:39.1]} 23. Rxh3 {[%clk
0:00:52.1]} 23... cxd4 {[%clk 0:00:38.7]} 24. Rxd4 {[%clk 0:00:53]} 24... Rd8
{[%clk 0:00:39.1]} 25. Rxd8 {[%clk 0:00:41.6]} 25... Rxd8 {[%clk 0:00:40]} 26.
f4 {[%clk 0:00:33]} 26... Rd1+ {[%clk 0:00:35.6]} 27. Kf2 {[%clk 0:00:32.9]}
27... Rd2+ {[%clk 0:00:36.5]} 28. Ke3 {[%clk 0:00:31.7]} 28... Rxb2 {[%clk
0:00:36.5]} 29. Kxe4 {[%clk 0:00:31.9]} 29... Rxa2 {[%clk 0:00:36.4]} 30. Kf5
{[%clk 0:00:32.4]} 30... Kg7 {[%clk 0:00:35.8]} 31. Rg3+ {[%clk 0:00:32.5]}
31... Kf7 {[%clk 0:00:35.6]} 32. Rc3 {[%clk 0:00:29]} 32... Ra5+ {[%clk
0:00:36.5]} 33. Ke4 {[%clk 0:00:28.6]} 33... f5+ {[%clk 0:00:34.4]} 34. Kd4
{[%clk 0:00:25.5]} 34... Rb5 {[%clk 0:00:35.3]} 35. Rc7+ {[%clk 0:00:24.5]}
35... Kg6 {[%clk 0:00:35.5]} 36. h3 {[%clk 0:00:21.9]} 36... Rb4+ {[%clk
0:00:34.3]} 37. Ke3 {[%clk 0:00:20]} 37... a5 {[%clk 0:00:32.4]} 38. g4 {[%clk
0:00:20]} 38... a4 {[%clk 0:00:26.4]} 39. Rc8 {[%clk 0:00:19.3]} 39... Rb3+
{[%clk 0:00:21.9]} 40. Kd4 {[%clk 0:00:18.5]} 40... Rxh3 {[%clk 0:00:22.3]} 41.
Ke5 {[%clk 0:00:16]} 41... Re3+ {[%clk 0:00:21.6]} 42. Kd5 {[%clk 0:00:15.4]}
42... fxg4 {[%clk 0:00:20.6]} 43. Ra8 {[%clk 0:00:13.9]} 43... b5 {[%clk
0:00:19.1]} 44. Kd4 {[%clk 0:00:14.3]} 44... Re1 {[%clk 0:00:17.4]} 45. Ra5
{[%clk 0:00:14.1]} 45... Rb1 {[%clk 0:00:16.7]} 46. Ke5 {[%clk 0:00:13.8]} 46...
g3 {[%clk 0:00:17]} 47. f5+ {[%clk 0:00:14.2]} 47... Kg5 {[%clk 0:00:15.8]} 48.
f6 {[%clk 0:00:13.5]} 48... g2 {[%clk 0:00:16]} 49. f7 {[%clk 0:00:12.7]} 49...
Rf1 {[%clk 0:00:15.7]} 50. Ra8 {[%clk 0:00:10.9]} 50... Rxf7 {[%clk 0:00:14.8]}
51. Rg8+ {[%clk 0:00:11]} 51... Kh6 {[%clk 0:00:15.1]} 52. Rxg2 {[%clk
0:00:11.9]} 52... Rc7 {[%clk 0:00:12.4]} 53. Kf6 {[%clk 0:00:11.7]} 53... Rc6+
{[%clk 0:00:12.2]} 54. Kf5 {[%clk 0:00:11.8]} 54... Rc5+ {[%clk 0:00:12.4]} 55.
Kf6 {[%clk 0:00:11.5]} 55... Kh5 {[%clk 0:00:12.7]} 56. Rh2+ {[%clk 0:00:11.9]}
56... Kg4 {[%clk 0:00:12.8]} 57. Rxh7 {[%clk 0:00:12.8]} 57... Kf3 {[%clk
0:00:12.4]} 58. Rh4 {[%clk 0:00:12.1]} 58... Ke3 {[%clk 0:00:11.8]} 59. Ke6
{[%clk 0:00:12.5]} 59... Kd3 {[%clk 0:00:12]} 60. Kd6 {[%clk 0:00:13.1]} 60...
Rg5 {[%clk 0:00:12.1]} 61. Kc6 {[%clk 0:00:09.8]} 61... Kc3 {[%clk 0:00:12.1]}
62. Rh3+ {[%clk 0:00:07.8]} 62... Kb4 {[%clk 0:00:11.9]} 63. Kb6 {[%clk
0:00:08.4]} 63... Rg6+ {[%clk 0:00:10.5]} 64. Kc7 {[%clk 0:00:07.1]} 64... a3
{[%clk 0:00:11.4]} 65. Rh4+ {[%clk 0:00:07.2]} 65... Ka5 {[%clk 0:00:11.5]} 66.
Rh8 {[%clk 0:00:07.9]} 66... Ka4 {[%clk 0:00:11.2]} 67. Ra8+ {[%clk 0:00:07.5]}
67... Kb3 {[%clk 0:00:11.4]} 68. Rf8 {[%clk 0:00:05.9]} 68... b4 {[%clk
0:00:11]} 69. Rf3+ {[%clk 0:00:06]} 69... Ka4 {[%clk 0:00:11.3]} 70. Rf2 {[%clk
0:00:06.9]} 70... Rg4 {[%clk 0:00:09.7]} 71. Kb6 {[%clk 0:00:05.8]} 71... b3
{[%clk 0:00:10]} 72. Rf8 {[%clk 0:00:06]} 72... a2 {[%clk 0:00:10.1]} 73. Kc5
{[%clk 0:00:06.5]} 73... Ka3 {[%clk 0:00:09.7]} 74. Rf1 {[%clk 0:00:02.8]} 74...
Rb4 {[%clk 0:00:07.7]} 75. Re1 {[%clk 0:00:02.2]} 75... b2 {[%clk 0:00:07.8]}
76. Re3+ {[%clk 0:00:02.7]} 76... Rb3 {[%clk 0:00:08.1]} 77. Re8 {[%clk
0:00:03.6]} 77... b1=Q {[%clk 0:00:07.8]} 78. Ra8+ {[%clk 0:00:03.9]} 78... Kb2
{[%clk 0:00:08.4]} 0-1

[Event "*** SCC Grand Prix: Titled Tuesday Blitz"]
[Site "Chess.com"]
[Date "2020.07.07"]
[Round "4"]
[White "Fighter008"]
[Black "JoliyRoger"]
[Result "1/2-1/2"]
[WhiteElo "2572"]
[BlackElo "2260"]
[TimeControl "180+1"]
[EndTime "10:42:10 PDT"]
[Termination "Game drawn by repetition"]

1. Nf3 {[%clk 0:03:00.9]} 1... Nf6 {[%clk 0:02:57]} 2. g3 {[%clk 0:03:00.9]}
2... c5 {[%clk 0:02:56.7]} 3. Bg2 {[%clk 0:03:01]} 3... Nc6 {[%clk 0:02:57.6]}
4. O-O {[%clk 0:03:01.3]} 4... e5 {[%clk 0:02:57.8]} 5. d3 {[%clk 0:03:01.2]}
5... d5 {[%clk 0:02:58.2]} 6. e4 {[%clk 0:02:57.9]} 6... d4 {[%clk 0:02:57.8]}
7. Na3 {[%clk 0:02:56.2]} 7... h6 {[%clk 0:02:57.7]} 8. Nc4 {[%clk 0:02:55.1]}
8... Qc7 {[%clk 0:02:58.1]} 9. a4 {[%clk 0:02:55.3]} 9... Bg4 {[%clk 0:02:58.1]}
10. h3 {[%clk 0:02:54.9]} 10... Be6 {[%clk 0:02:58.6]} 11. Nh4 {[%clk
0:02:51.7]} 11... g6 {[%clk 0:02:49.5]} 12. f4 {[%clk 0:02:49.3]} 12... Nd7
{[%clk 0:02:38.5]} 13. b3 {[%clk 0:02:38.4]} 13... Bxc4 {[%clk 0:02:19.1]} 14.
bxc4 {[%clk 0:02:37.5]} 14... Bd6 {[%clk 0:02:19.4]} 15. Bd2 {[%clk 0:02:28.4]}
15... h5 {[%clk 0:02:18.2]} 16. f5 {[%clk 0:02:26.2]} 16... O-O-O {[%clk
0:02:07.2]} 17. fxg6 {[%clk 0:02:11]} 17... fxg6 {[%clk 0:02:07.6]} 18. Nxg6
{[%clk 0:02:11.2]} 18... Rh7 {[%clk 0:02:08]} 19. Nh4 {[%clk 0:02:08.2]} 19...
Be7 {[%clk 0:02:00.7]} 20. Nf5 {[%clk 0:02:08]} 20... Bf6 {[%clk 0:02:00.9]} 21.
a5 {[%clk 0:02:07.5]} 21... a6 {[%clk 0:01:58.1]} 22. Bf3 {[%clk 0:02:02.3]}
22... Rdh8 {[%clk 0:01:46.3]} 23. Qe2 {[%clk 0:01:57]} 23... Kb8 {[%clk
0:01:43.5]} 24. Rfb1 {[%clk 0:01:47.5]} 24... Ka7 {[%clk 0:01:41.4]} 25. Rb3
{[%clk 0:01:42.7]} 25... Nd8 {[%clk 0:01:32.9]} 26. Rab1 {[%clk 0:01:39.5]}
26... Nb8 {[%clk 0:01:30.4]} 27. Rb6 {[%clk 0:01:30.2]} 27... Nbc6 {[%clk
0:01:30.6]} 28. c3 {[%clk 0:01:26.5]} 28... Qd7 {[%clk 0:01:21]} 29. cxd4 {[%clk
0:01:23.5]} 29... exd4 {[%clk 0:01:06.1]} 30. Bf4 {[%clk 0:01:23.3]} 30... Be5
{[%clk 0:01:00.9]} 31. Kf2 {[%clk 0:01:06.2]} 31... Qc7 {[%clk 0:00:52.1]} 32.
Qd2 {[%clk 0:01:03.4]} 32... Rf8 {[%clk 0:00:24.6]} 33. h4 {[%clk 0:00:53.4]}
33... Bxf4 {[%clk 0:00:16.5]} 34. gxf4 {[%clk 0:00:44.9]} 34... Rhf7 {[%clk
0:00:16.5]} 35. Rg1 {[%clk 0:00:34.2]} 35... Nxa5 {[%clk 0:00:13.8]} 36. Rbb1
{[%clk 0:00:32.7]} 36... Nac6 {[%clk 0:00:13.8]} 37. Rg5 {[%clk 0:00:32.2]}
37... Nb4 {[%clk 0:00:11.9]} 38. Bxh5 {[%clk 0:00:26.5]} 38... Ne6 {[%clk
0:00:12.3]} 39. Bxf7 {[%clk 0:00:23.7]} 39... Rxf7 {[%clk 0:00:12.8]} 40. Rg4
{[%clk 0:00:22.6]} 40... Nxf4 {[%clk 0:00:10.6]} 41. Rxf4 {[%clk 0:00:18]} 41...
Nxd3+ {[%clk 0:00:11.1]} 42. Kf3 {[%clk 0:00:18.2]} 42... Ne5+ {[%clk
0:00:10.2]} 43. Ke2 {[%clk 0:00:17.7]} 43... d3+ {[%clk 0:00:10.3]} 44. Kf2
{[%clk 0:00:13]} 44... Nxc4 {[%clk 0:00:10.4]} 45. Qxd3 {[%clk 0:00:10.6]} 45...
Qxf4+ {[%clk 0:00:10.8]} 46. Qf3 {[%clk 0:00:11]} 46... Qd2+ {[%clk 0:00:10.4]}
47. Kg3 {[%clk 0:00:11]} 47... Ne5 {[%clk 0:00:10]} 48. Qf4 {[%clk 0:00:09.1]}
48... Qd3+ {[%clk 0:00:09.4]} 49. Kg2 {[%clk 0:00:09]} 49... Nc4 {[%clk
0:00:09.3]} 50. Re1 {[%clk 0:00:08.1]} 50... Rf8 {[%clk 0:00:09.5]} 51. Ng3
{[%clk 0:00:04.4]} 51... Rg8 {[%clk 0:00:10.4]} 52. e5 {[%clk 0:00:04.7]} 52...
Rf8 {[%clk 0:00:11.3]} 53. Qxf8 {[%clk 0:00:04.2]} 53... Nd2 {[%clk 0:00:12.1]}
54. Qf2 {[%clk 0:00:03.6]} 54... Qd5+ {[%clk 0:00:13]} 55. Kg1 {[%clk
0:00:03.2]} 55... Nf3+ {[%clk 0:00:13.2]} 56. Kf1 {[%clk 0:00:03.1]} 56... Nd2+
{[%clk 0:00:12.9]} 57. Kg1 {[%clk 0:00:02.7]} 57... Nf3+ {[%clk 0:00:13.2]} 58.
Kf1 {[%clk 0:00:03.3]} 58... Nd2+ {[%clk 0:00:13.4]} 59. Ke2 {[%clk 0:00:03.9]}
59... Nc4 {[%clk 0:00:13.5]} 60. Kf1 {[%clk 0:00:02.8]} 60... Qd3+ {[%clk
0:00:11.8]} 61. Qe2 {[%clk 0:00:02.8]} 61... Qd5 {[%clk 0:00:12.3]} 62. Qg2
{[%clk 0:00:02.5]} 62... Qd4 {[%clk 0:00:11.5]} 63. Qf2 {[%clk 0:00:02]} 63...
Qd3+ {[%clk 0:00:11.7]} 64. Qe2 {[%clk 0:00:02.1]} 64... Qd5 {[%clk 0:00:11.8]}
65. Kg1 {[%clk 0:00:02.4]} 65... Nd2 {[%clk 0:00:11.1]} 66. e6 {[%clk
0:00:01.8]} 66... Nf3+ {[%clk 0:00:11]} 67. Kf2 {[%clk 0:00:02.5]} 67... Nxh4
{[%clk 0:00:11.3]} 68. e7 {[%clk 0:00:02.4]} 68... Qg2+ {[%clk 0:00:11.3]} 69.
Ke3 {[%clk 0:00:03.1]} 69... Qxg3+ {[%clk 0:00:11.9]} 70. Kd2 {[%clk 0:00:03.8]}
70... Qd6+ {[%clk 0:00:12.3]} 71. Kc2 {[%clk 0:00:04.3]} 71... Nf3 {[%clk
0:00:11.8]} 72. e8=Q {[%clk 0:00:05.2]} 72... Nd4+ {[%clk 0:00:12.3]} 73. Kc1
{[%clk 0:00:05.4]} 73... Qb6 {[%clk 0:00:12.9]} 74. Qd2 {[%clk 0:00:04.9]} 74...
Nb3+ {[%clk 0:00:11.1]} 75. Kd1 {[%clk 0:00:05.2]} 75... Nxd2 {[%clk 0:00:11.3]}
76. Kxd2 {[%clk 0:00:06.1]} 76... Qb2+ {[%clk 0:00:11.6]} 77. Kd3 {[%clk
0:00:06.3]} 77... Qb3+ {[%clk 0:00:11.7]} 78. Ke2 {[%clk 0:00:06.9]} 78... Qc2+
{[%clk 0:00:12]} 79. Kf1 {[%clk 0:00:07.5]} 79... Qf5+ {[%clk 0:00:12.4]} 80.
Kg2 {[%clk 0:00:08.1]} 80... Qg4+ {[%clk 0:00:12.5]} 81. Kf2 {[%clk 0:00:08.6]}
81... Qf4+ {[%clk 0:00:12.9]} 82. Kg1 {[%clk 0:00:09.2]} 82... Qg3+ {[%clk
0:00:13.1]} 83. Kf1 {[%clk 0:00:09.8]} 83... Qf3+ {[%clk 0:00:13.7]} 84. Kg1
{[%clk 0:00:10.4]} 84... Qg3+ {[%clk 0:00:14.3]} 85. Kh1 {[%clk 0:00:11.1]}
85... Qh3+ {[%clk 0:00:14.3]} 86. Kg1 {[%clk 0:00:12]} 86... Qg3+ {[%clk
0:00:15]} 1/2-1/2

[Event "*** SCC Grand Prix: Titled Tuesday Blitz"]
[Site "Chess.com"]
[Date "2020.07.07"]
[Round "4"]
[White "SzMM19"]
[Black "Alkhoori90"]
[Result "1-0"]
[WhiteElo "2580"]
[BlackElo "2248"]
[TimeControl "180+1"]
[EndTime "10:42:12 PDT"]
[Termination "SzMM19 won by resignation"]

1. e4 {[%clk 0:03:00.9]} 1... d5 {[%clk 0:03:00.3]} 2. exd5 {[%clk 0:03:00.7]}
2... Qxd5 {[%clk 0:03:01.2]} 3. Nc3 {[%clk 0:03:00.9]} 3... Qd6 {[%clk
0:03:01.8]} 4. d4 {[%clk 0:03:01.3]} 4... Nf6 {[%clk 0:03:02]} 5. Nf3 {[%clk
0:03:01.8]} 5... Bg4 {[%clk 0:03:02.3]} 6. h3 {[%clk 0:03:01.5]} 6... Bxf3
{[%clk 0:03:02.6]} 7. Qxf3 {[%clk 0:03:00.6]} 7... c6 {[%clk 0:03:03.2]} 8. Be3
{[%clk 0:03:00.7]} 8... Nbd7 {[%clk 0:03:03.5]} 9. Bd3 {[%clk 0:02:57.3]} 9...
e6 {[%clk 0:03:03.6]} 10. O-O {[%clk 0:02:57.1]} 10... Be7 {[%clk 0:03:03.9]}
11. Rad1 {[%clk 0:02:56.9]} 11... O-O {[%clk 0:03:03.7]} 12. Rfe1 {[%clk
0:02:57.3]} 12... Qb4 {[%clk 0:03:00.6]} 13. Rb1 {[%clk 0:02:50.9]} 13... Qa5
{[%clk 0:02:49.4]} 14. g4 {[%clk 0:02:38.4]} 14... Nd5 {[%clk 0:02:41.5]} 15.
Nxd5 {[%clk 0:02:35.3]} 15... Qxd5 {[%clk 0:02:42.4]} 16. Qxd5 {[%clk
0:02:20.3]} 16... cxd5 {[%clk 0:02:43.3]} 17. c4 {[%clk 0:02:12.6]} 17... dxc4
{[%clk 0:02:43]} 18. Bxc4 {[%clk 0:02:13.5]} 18... Nb6 {[%clk 0:02:43.2]} 19.
Bb3 {[%clk 0:02:12]} 19... Rfd8 {[%clk 0:02:37.6]} 20. Rec1 {[%clk 0:02:06.5]}
20... Rac8 {[%clk 0:02:32.2]} 21. Kf1 {[%clk 0:02:04.4]} 21... h6 {[%clk
0:02:20.8]} 22. Ke2 {[%clk 0:02:02.5]} 22... Bf6 {[%clk 0:02:15.2]} 23. Rxc8
{[%clk 0:01:59.9]} 23... Rxc8 {[%clk 0:02:16.1]} 24. Kd3 {[%clk 0:01:54.5]}
24... Kf8 {[%clk 0:02:10.6]} 25. a4 {[%clk 0:01:47]} 25... Ke7 {[%clk
0:01:34.9]} 26. f4 {[%clk 0:01:46.4]} 26... g5 {[%clk 0:01:23]} 27. f5 {[%clk
0:01:40.2]} 27... exf5 {[%clk 0:01:01.5]} 28. gxf5 {[%clk 0:01:40]} 28... Rd8
{[%clk 0:00:47.3]} 29. Ke4 {[%clk 0:01:40]} 29... Nc8 {[%clk 0:00:40.3]} 30. Rf1
{[%clk 0:01:31.8]} 30... Nd6+ {[%clk 0:00:37.7]} 31. Kd3 {[%clk 0:01:32.2]}
31... b5 {[%clk 0:00:26.8]} 32. Bd2 {[%clk 0:01:27]} 32... bxa4 {[%clk
0:00:22.1]} 33. Bxa4 {[%clk 0:01:25.4]} 33... Rb8 {[%clk 0:00:22.7]} 34. b3
{[%clk 0:01:14.2]} 34... Rb7 {[%clk 0:00:21.1]} 35. Bc3 {[%clk 0:01:02.9]} 35...
Kf8 {[%clk 0:00:18.2]} 36. Bb2 {[%clk 0:01:01.5]} 36... Kg7 {[%clk 0:00:17.6]}
37. Ba3 {[%clk 0:00:55.9]} 37... Nb5 {[%clk 0:00:18]} 38. Bc5 {[%clk 0:00:56]}
38... Nc7 {[%clk 0:00:14.7]} 39. Kc4 {[%clk 0:00:52.9]} 39... Na8 {[%clk
0:00:08.9]} 40. Bc6 {[%clk 0:00:51.2]} 40... Rb8 {[%clk 0:00:08.5]} 41. b4
{[%clk 0:00:39.7]} 41... Nb6+ {[%clk 0:00:07.8]} 42. Kd3 {[%clk 0:00:19]} 42...
Rc8 {[%clk 0:00:07.8]} 43. d5 {[%clk 0:00:16.2]} 43... Rd8 {[%clk 0:00:07]} 44.
Ke4 {[%clk 0:00:12.9]} 44... Nc4 {[%clk 0:00:06.2]} 45. Rc1 {[%clk 0:00:10.2]}
45... Nd6+ {[%clk 0:00:05.3]} 46. Bxd6 {[%clk 0:00:10.7]} 46... Rxd6 {[%clk
0:00:05.5]} 47. Rc2 {[%clk 0:00:11.3]} 47... Rd8 {[%clk 0:00:05.8]} 48. Ra2
{[%clk 0:00:11.4]} 48... h5 {[%clk 0:00:05.2]} 49. Rxa7 {[%clk 0:00:10.9]} 49...
g4 {[%clk 0:00:05]} 50. hxg4 {[%clk 0:00:11.8]} 50... hxg4 {[%clk 0:00:05.9]}
51. Ra3 {[%clk 0:00:12.3]} 51... Rb8 {[%clk 0:00:05.9]} 52. b5 {[%clk
0:00:12.3]} 52... Kh6 {[%clk 0:00:05.9]} 53. d6 {[%clk 0:00:10.8]} 53... Kg5
{[%clk 0:00:05.7]} 54. Kd5 {[%clk 0:00:05.7]} 54... Kh4 {[%clk 0:00:05.8]} 55.
d7 {[%clk 0:00:05.4]} 55... g3 {[%clk 0:00:06]} 56. Kd6 {[%clk 0:00:05.9]} 56...
Rg8 {[%clk 0:00:05.6]} 57. Bg2 {[%clk 0:00:05.2]} 57... Bg5 {[%clk 0:00:05.1]}
58. b6 {[%clk 0:00:04.5]} 58... Bf4+ {[%clk 0:00:05.1]} 59. Kc6 {[%clk
0:00:04.9]} 59... Be5 {[%clk 0:00:04.6]} 60. Ra4+ {[%clk 0:00:04.7]} 60... Kh5
{[%clk 0:00:04.6]} 61. b7 {[%clk 0:00:04.9]} 61... Kg5 {[%clk 0:00:03.8]} 62.
Ra8 {[%clk 0:00:05]} 62... Bb8 {[%clk 0:00:03]} 63. Kd5 {[%clk 0:00:02.1]} 63...
Kf4 {[%clk 0:00:03.3]} 64. f6 {[%clk 0:00:01.8]} 64... Ke3 {[%clk 0:00:03.5]}
65. Kc6 {[%clk 0:00:02.7]} 65... Kf2 {[%clk 0:00:03.7]} 66. Bh3 {[%clk
0:00:03.6]} 66... g2 {[%clk 0:00:04.6]} 67. Bxg2 {[%clk 0:00:04]} 67... Kxg2
{[%clk 0:00:05.5]} 68. Kd5 {[%clk 0:00:03.7]} 68... Kf3 {[%clk 0:00:05.9]} 69.
Kc6 {[%clk 0:00:03.6]} 69... Kf4 {[%clk 0:00:06.3]} 70. Ra5 {[%clk 0:00:04]}
70... Be5 {[%clk 0:00:06]} 71. Rd5 {[%clk 0:00:04.1]} 71... Kf5 {[%clk
0:00:06.4]} 72. Rxe5+ {[%clk 0:00:04.3]} 72... Kxe5 {[%clk 0:00:06.7]} 73. Kc7
{[%clk 0:00:05.1]} 73... Kxf6 {[%clk 0:00:06.8]} 74. d8=Q+ {[%clk 0:00:05.6]}
74... Rxd8 {[%clk 0:00:07.2]} 75. Kxd8 {[%clk 0:00:06.5]} 75... Kg5 {[%clk
0:00:08.1]} 76. b8=Q {[%clk 0:00:07.4]} 76... f5 {[%clk 0:00:09]} 77. Qb1 {[%clk
0:00:08.3]} 77... f4 {[%clk 0:00:09.9]} 78. Qf1 {[%clk 0:00:09.2]} 78... Kg4
{[%clk 0:00:10.8]} 79. Kd7 {[%clk 0:00:10.1]} 79... f3 {[%clk 0:00:11.7]} 80.
Kd6 {[%clk 0:00:11]} 80... Kf4 {[%clk 0:00:12.6]} 81. Kd5 {[%clk 0:00:11.9]}
81... Ke3 {[%clk 0:00:13.5]} 82. Ke5 {[%clk 0:00:12]} 82... f2 {[%clk
0:00:13.5]} 83. Kf5 {[%clk 0:00:12.3]} 1-0

[Event "*** SCC Grand Prix: Titled Tuesday Blitz"]
[Site "Chess.com"]
[Date "2020.07.07"]
[Round "5"]
[White "Blagorod"]
[Black "tteshan"]
[Result "1-0"]
[WhiteElo "2100"]
[BlackElo "2276"]
[TimeControl "180+1"]
[EndTime "10:49:31 PDT"]
[Termination "Blagorod won by checkmate"]

1. e4 {[%clk 0:03:00.9]} 1... c5 {[%clk 0:02:59.9]} 2. Nc3 {[%clk 0:03:01.1]}
2... Nc6 {[%clk 0:02:57.4]} 3. g3 {[%clk 0:03:01.7]} 3... e6 {[%clk 0:02:57]} 4.
Bg2 {[%clk 0:03:02.2]} 4... Nge7 {[%clk 0:02:57.5]} 5. d3 {[%clk 0:03:02.2]}
5... d5 {[%clk 0:02:57.8]} 6. exd5 {[%clk 0:02:58.8]} 6... exd5 {[%clk
0:02:56.2]} 7. Nf3 {[%clk 0:02:58.8]} 7... Bg4 {[%clk 0:02:55.4]} 8. h3 {[%clk
0:02:56.9]} 8... Bxf3 {[%clk 0:02:52.9]} 9. Qxf3 {[%clk 0:02:56.3]} 9... d4
{[%clk 0:02:50.1]} 10. Ne4 {[%clk 0:02:52.4]} 10... g6 {[%clk 0:02:37.8]} 11.
Nf6# {[%clk 0:02:51]} 1-0